bitfinex-derivatives/quotes_ETHF0:USTF0_20250314
["timestamp","ask_amount","ask_price","bid_price","bid_amount"]
[1741942618389,6.1204,1897.0,1896.9,2.41343]
[1741942618886,7.17478,1897.0,1896.9,2.41343]
[1741942619478,7.17478,1897.0,1896.9,1.359]
[1741942620283,1.05443,1896.9,1896.8,0.00790077]
[1741942620487,3.10963,1896.9,1896.8,0.00790077]
[1741942620687,5.60963,1896.9,1896.8,0.00790077]
[1741942621892,5.60963,1896.9,1896.8,2.37939077]
[1741942622094,5.60963,1896.9,1896.8,1.32490077]
[1741942622890,5.60963,1896.9,1896.8,2.37939077]
[1741942623083,5.60963,1896.9,1896.8,1.32490077]
[1741942623285,3.8628,1896.9,1896.8,1.32490077]
[1741942623485,3.8628,1896.9,1896.8,2.37939077]
[1741942623685,4.91723,1896.9,1896.8,2.37939077]
[1741942624287,3.8628,1896.9,1896.8,2.37939077]
[1741942624600,4.91723,1896.9,1896.8,1.32490077]
[1741942624900,4.91723,1896.9,1896.8,2.37939077]
[1741942628292,4.91723,1896.9,1896.8,1.32490077]
[1741942630798,5.58423,1896.9,1896.8,1.32490077]
[1741942631694,5.58423,1896.9,1896.8,0.00790077]
[1741942632601,5.58423,1896.9,1896.8,1.43450077]
[1741942633102,4.5298,1896.9,1896.8,2.48899077]
[1741942633405,0.6863,1897.1,1896.8,1.43450077]
[1741942633600,3.8898,1897.1,1897.0,1.05438]
[1741942633802,2.5,1897.1,1897.0,1.05438]
[1741942633996,2.5,1897.1,1897.0,2.48098]
[1741942634196,4.3569,1897.3,1897.2,1.05426]
[1741942634396,5.4671,1897.3,1897.2,1.05426]
[1741942634700,4.811,1897.3,1897.2,1.05426]
[1741942635003,4.811,1897.3,1897.2,3.16386]
[1741942635502,5.5188,1897.4,1897.3,1.05421]
[1741942635805,5.5188,1897.4,1897.3,2.45481]
[1741942636000,2.311,1897.4,1897.3,2.45481]
[1741942636202,25.979,1897.7,1897.3,1.4006]
[1741942636505,27.22202,1897.7,1897.5,1.05407]
[1741942636699,29.53302,1897.7,1897.6,1.4006]
[1741942636899,30.95772,1897.7,1897.6,1.4006]
[1741942638310,30.95772,1897.7,1897.6,2.45464]
[1741942639502,29.9037,1897.7,1897.6,2.45464]
[1741942640992,28.479,1897.7,1897.6,1.4006]
[1741942641193,30.94249,1897.7,1897.6,1.4006]
[1741942641906,1.0541,1897.5,1897.4,4.26193]
[1741942642202,1.4095,1897.6,1897.4,4.26193]
[1741942642397,1.0541,1897.5,1897.4,4.26193]
[1741942642704,3.9095,1897.6,1897.5,1.0541]
[1741942643410,3.0237,1897.8,1897.7,1.05399]
[1741942643613,6.9332,1897.8,1897.7,1.05399]
[1741942643904,3.2137,1897.8,1897.7,1.05399]
[1741942644104,0.7137,1897.8,1897.7,2.47079]
[1741942644407,5.52570077,1897.9,1897.8,1.05393]
[1741942644599,5.52570077,1897.9,1897.8,2.47073]
[1741942645299,5.52570077,1897.9,1897.8,1.4168]
[1741942645512,6.76958077,1897.9,1897.8,1.4168]
[1741942646105,8.16438077,1897.9,1897.8,1.4168]
[1741942646998,4.95658077,1897.9,1897.8,1.4168]
[1741942647206,7.26658077,1897.9,1897.8,1.4168]
[1741942648299,6.21270077,1897.9,1897.8,2.47073]
[1741942648600,7.26658077,1897.9,1897.8,1.4168]
[1741942649702,7.26658077,1897.9,1897.8,2.47073]
[1741942650408,6.21270077,1897.9,1897.8,2.47073]
[1741942652103,4.81790077,1897.9,1897.8,2.47073]
[1741942652300,0.00790077,1897.9,1897.8,5.67853]
[1741942652505,3.7327,1898.2,1898.1,1.05376]
[1741942652706,1.05378,1898.1,1898.0,1.05378]
[1741942652908,2.41018,1898.1,1898.0,2.48848]
[1741942653107,3.8564,1898.1,1898.0,2.48848]
[1741942653307,2.5,1898.1,1898.0,2.48848]
[1741942653705,2.5,1898.1,1898.0,3.19168]
[1741942654815,3.67430077,1898.2,1898.1,1.05376]
[1741942655104,6.17430077,1898.2,1898.1,2.48846]
[1741942655512,4.81790077,1898.2,1898.1,2.48846]
[1741942655714,2.50790077,1898.2,1898.1,2.48846]
[1741942655904,3.56161077,1898.2,1898.1,2.48846]
[1741942656104,4.98191077,1898.2,1898.1,1.4347]
[1741942656604,4.98191077,1898.2,1898.1,2.48846]
[1741942657005,3.92820077,1898.2,1898.1,2.48846]
[1741942658914,4.98191077,1898.2,1898.1,2.48846]
[1741942660017,3.92820077,1898.2,1898.1,2.48846]
[1741942660612,4.98191077,1898.2,1898.1,2.48846]
[1741942662518,3.92820077,1898.2,1898.1,2.48846]
[1741942663420,2.50790077,1898.2,1898.1,2.48846]
[1741942664116,4.94001077,1898.2,1898.1,2.48846]
[1741942665022,4.94001077,1898.2,1898.1,1.4347]
[1741942665412,1.05382,1898.0,1897.9,5.98590077]
[1741942665614,3.36282,1898.0,1897.9,7.32860077]
[1741942665823,5.86282,1898.0,1897.9,5.98590077]
[1741942666120,8.08660878,1898.0,1897.9,0.00790077]
[1741942666513,1.05393,1897.8,1897.7,1.3427]
[1741942666922,3.55393,1897.8,1897.7,1.3427]
[1741942667122,1.05408,1897.6,1897.4,4.26191]
[1741942667316,1.05408,1897.6,1897.5,1.3427]
[1741942667513,1.0541,1897.5,1897.4,3.2078]
[1741942667717,2.4646,1897.5,1897.4,3.21570077]
[1741942667917,4.9646,1897.5,1897.4,4.55840077]
[1741942668626,4.9646,1897.5,1897.4,5.61255077]
[1741942669526,3.9105,1897.5,1897.4,5.61255077]
[1741942669824,0.7105,1897.5,1897.4,5.61255077]
[1741942670524,0.7105,1897.5,1897.4,4.55840077]
[1741942670525,3.2105,1897.5,1897.4,4.55840077]
[1741942670823,4.2646,1897.5,1897.4,4.55840077]
[1741942671027,4.2646,1897.5,1897.4,5.61255077]
[1741942671924,3.2105,1897.5,1897.4,5.61255077]
[1741942672123,4.2646,1897.5,1897.4,5.61255077]
[1741942672416,3.2105,1897.5,1897.4,5.61255077]
[1741942673329,2.5,1897.5,1897.4,5.61255077]
[1741942673724,4.0633,1897.7,1897.6,1.05404]
[1741942673927,6.5633,1897.7,1897.6,1.05404]
[1741942674420,6.5633,1897.7,1897.6,2.43144]
[1741942674626,3.2003,1897.7,1897.6,2.43144]
[1741942674822,5.5093,1897.7,1897.6,2.43144]
[1741942675125,3.2078,1898.0,1897.8,1.05392]
[1741942675321,4.06321,1897.9,1897.8,1.05392]
[1741942675522,1.05395,1897.8,1897.7,1.05396]
[1741942675726,2.5,1897.8,1897.7,1.05396]
[1741942676425,3.55393,1897.8,1897.7,1.05396]
[1741942676818,1.05402,1897.7,1897.6,1.05402]
[1741942677018,1.05402,1897.7,1897.6,1.05403]
[1741942677226,3.55402,1897.7,1897.6,1.05403]
[1741942677625,2.5,1897.7,1897.6,1.05403]
[1741942679426,1.05404,1897.6,1897.5,1.71486]
[1741942679830,3.55404,1897.6,1897.5,1.71486]
[1741942680026,2.5,1897.6,1897.5,1.71486]
[1741942680228,3.55404,1897.6,1897.5,1.71486]
[1741942681023,2.5,1897.6,1897.5,1.71486]
[1741942681226,3.55404,1897.6,1897.5,1.71486]
[1741942682725,2.5,1897.6,1897.4,3.21570077]
[1741942683029,3.3631,1897.5,1897.4,3.21570077]
[1741942683422,5.8631,1897.5,1897.4,3.21570077]
[1741942683623,5.8631,1897.5,1897.4,4.26985077]
[1741942683823,4.809,1897.5,1897.4,4.26985077]
[1741942684021,5.8631,1897.5,1897.4,4.26985077]
[1741942684225,4.809,1897.5,1897.4,4.26985077]
[1741942684626,5.8631,1897.5,1897.4,4.26985077]
[1741942685031,4.809,1897.5,1897.4,4.26985077]
[1741942686337,4.809,1897.5,1897.4,5.63965077]
[1741942688428,2.5,1897.5,1897.4,5.63965077]
[1741942690536,0.7029,1897.8,1897.4,4.58550077]
[1741942690733,6.9371,1897.8,1897.7,1.05399]
[1741942691033,3.2029,1897.8,1897.7,1.05399]
[1741942691233,3.2029,1897.8,1897.7,3.09769]
[1741942691536,4.25683,1897.8,1897.7,3.09769]
[1741942691737,6.34143,1897.8,1897.7,3.09769]
[1741942692036,6.34143,1897.8,1897.7,1.3792]
[1741942692236,1.05404,1897.6,1897.5,1.05407]
[1741942692531,3.36204,1897.6,1897.5,1.05407]
[1741942692733,5.86204,1897.6,1897.5,1.05407]
[1741942693235,4.808,1897.6,1897.5,1.05407]
[1741942693628,4.808,1897.6,1897.5,2.49007]
[1741942693827,3.7374,1897.7,1897.6,1.05404]
[1741942694037,6.2374,1897.7,1897.6,3.16524]
[1741942694539,4.808,1897.7,1897.6,3.16524]
[1741942695841,2.41623,1897.8,1897.6,2.1112]
[1741942696038,7.22423,1897.8,1897.7,2.48249]
[1741942696433,5.5109,1897.8,1897.7,2.48249]
[1741942697328,6.8709,1897.8,1897.7,2.48249]
[1741942697528,0.6841,1898.0,1897.7,1.4285]
[1741942697735,5.4921,1898.0,1897.8,1.4285]
[1741942697933,1.05388,1897.9,1897.8,1.4285]
[1741942698139,2.41388,1897.9,1897.8,1.4285]
[1741942698340,4.91388,1897.9,1897.8,1.4285]
[1741942699041,5.00067572,1897.9,1897.8,1.4285]
[1741942699744,4.91388,1897.9,1897.8,2.48243]
[1741942699936,7.15459004,1897.9,1897.4,3.21570077]
[1741942700243,1.05399,1897.7,1897.6,1.3598]
[1741942700433,1.0541,1897.5,1897.4,3.21570077]
[1741942700835,3.5541,1897.5,1897.4,4.26985077]
[1741942701136,4.2095,1897.5,1897.4,4.26985077]
[1741942701835,5.64,1897.5,1897.4,5.64555077]
[1741942702039,5.64,1897.5,1897.4,2.43775077]
[1741942702234,5.64,1897.5,1897.4,5.64555077]
[1741942702443,5.64,1897.5,1897.4,4.59140077]
[1741942702735,5.64,1897.5,1897.4,0.00790077]
[1741942704737,8.8478,1897.5,1897.4,0.00790077]
[1741942704939,8.93461721,1897.5,1897.4,0.00790077]
[1741942705143,8.93462068,1897.5,1897.4,0.00790077]
[1741942705930,8.93461984,1897.5,1897.4,0.00790077]
[1741942707646,8.8478,1897.5,1897.4,0.00790077]
[1741942707834,8.93461935,1897.5,1897.4,0.00790077]
[1741942708035,5.72681935,1897.5,1897.4,0.00790077]
[1741942708230,5.72681935,1897.5,1897.4,1.42170077]
[1741942708433,5.64,1897.5,1897.4,1.42170077]
[1741942708644,5.72681395,1897.5,1897.4,1.42170077]
[1741942708844,5.7268135,1897.5,1897.4,1.42170077]
[1741942709537,5.72681285,1897.5,1897.4,1.42170077]
[1741942710043,5.72681285,1897.5,1897.4,0.00790077]
[1741942711848,5.64,1897.5,1897.4,0.00790077]
[1741942712146,5.72682466,1897.5,1897.4,0.00790077]
[1741942713746,8.93462466,1897.5,1897.4,0.00790077]
[1741942714337,8.93462466,1897.5,1897.2,1.4138]
[1741942714338,1.05421,1897.3,1897.2,1.4138]
[1741942714536,3.36221,1897.3,1897.2,1.4138]
[1741942714740,1.05438,1897.0,1896.7,0.6658]
[1741942714942,6.57023,1896.9,1896.8,1.4382]
[1741942715246,1.0546,1896.6,1896.5,0.6657]
[1741942715448,1.0546,1896.6,1896.5,2.1039]
[1741942715939,2.381,1896.6,1896.5,2.1039]
[1741942716942,2.381,1896.6,1896.5,3.15855]
[1741942717149,2.381,1896.6,1896.5,2.1039]
[1741942717645,1.3264,1896.6,1896.5,3.15855]
[1741942717845,1.06247077,1896.7,1896.5,3.15855]
[1741942718051,1.06247077,1896.7,1896.6,1.4071]
[1741942718357,1.06244077,1896.7,1896.6,2.4617]
[1741942718848,1.06244077,1896.7,1896.6,1.4071]
[1741942719050,2.43754077,1896.7,1896.6,1.4071]
[1741942719450,1.06244077,1896.7,1896.6,2.4617]
[1741942720349,0.00790077,1896.7,1896.6,2.4617]
[1741942720949,0.00790077,1896.7,1896.6,3.1642]
[1741942721149,1.06244077,1896.7,1896.6,2.1096]
[1741942721347,2.37354077,1896.7,1896.6,2.1096]
[1741942722150,2.37354077,1896.7,1896.6,1.4071]
[1741942723356,3.04504077,1896.7,1896.6,1.4071]
[1741942723556,6.25284077,1896.7,1896.6,1.4071]
[1741942725558,5.58134077,1896.7,1896.6,1.4071]
[1741942729061,4.27024077,1896.7,1896.6,2.4617]
[1741942729262,4.27024077,1896.7,1896.6,3.1274]
[1741942729762,3.21570077,1896.7,1896.6,3.1274]
[1741942731364,0.00790077,1896.7,1896.6,3.1274]
[1741942741962,1.33370077,1896.7,1896.6,2.4617]
[1741942742868,0.00790077,1896.7,1896.6,2.4617]
[1741942748866,1.41810077,1896.7,1896.6,2.4617]
[1741942753675,0.00790077,1896.7,1896.6,2.4617]
[1741942753877,0.00790077,1896.7,1896.6,5.6695]
[1741942755173,0.6663,1897.0,1896.9,1.05443]
[1741942755679,2.0968,1897.0,1896.9,1.05443]
[1741942756174,2.0968,1897.0,1896.9,2.50373]
[1741942760085,1.05443,1896.9,1896.8,0.00790077]
[1741942760382,2.45783,1896.9,1896.8,1.35370077]
[1741942761277,2.45783,1896.9,1896.8,2.40819077]
[1741942763987,2.45783,1896.9,1896.8,1.35370077]
[1741942764184,2.45783,1896.9,1896.8,0.00790077]
[1741942764382,1.05454,1896.7,1896.6,1.4317]
[1741942764578,5.5158,1896.7,1896.3,0.7088]
[1741942764782,5.5158,1896.7,1896.2,6.6549]
[1741942764783,3.2078,1896.5,1896.2,5.978]
[1741942764988,1.05476,1896.3,1896.2,5.978]
[1741942765188,4.4464,1896.4,1896.0,0.7088]
[1741942765189,7.08323,1896.4,1896.0,0.7088]
[1741942765387,1.05493,1896.1,1895.9,1.05496]
[1741942765587,1.05493,1896.1,1895.9,2.1154]
[1741942765787,2.44393,1896.1,1895.9,3.17035]
[1741942766088,2.44388,1896.1,1896.0,1.4066]
[1741942768186,2.44388,1896.1,1896.0,2.46153]
[1741942768386,2.44388,1896.1,1896.0,1.4066]
[1741942769192,5.45258,1896.1,1896.0,1.4066]
[1741942771398,7.03494,1896.1,1895.5,5.978]
[1741942771588,1.0551,1895.7,1895.6,1.4175]
[1741942772093,3.8913,1895.7,1895.6,1.4175]
[1741942774594,2.8362,1895.7,1895.2,5.978]
[1741942774900,2.8362,1895.7,1895.3,1.0553]
[1741942774901,4.6449,1895.6,1895.3,1.0553]
[1741942775097,2.49236,1895.5,1895.3,2.4547]
[1741942775299,1.4232,1895.7,1895.4,1.3994]
[1741942775601,3.36307,1895.8,1895.5,0.6753]
[1741942775792,3.36307,1895.8,1895.6,2.45451]
[1741942775993,3.36307,1895.8,1895.7,1.3994]
[1741942776495,4.80017,1895.8,1895.7,1.3994]
[1741942777090,3.36307,1895.8,1895.7,1.3994]
[1741942777701,4.69587,1895.8,1895.7,1.3994]
[1741942777891,4.69587,1895.8,1895.7,2.4545]
[1741942778197,4.69587,1895.8,1895.7,1.3994]
[1741942779101,4.69587,1895.8,1895.7,2.4545]
[1741942779290,3.6408,1895.8,1895.7,2.4545]
[1741942779497,2.308,1895.8,1895.7,2.4545]
[1741942779803,1.05504,1895.8,1895.7,2.4545]
[1741942780697,6.8486,1895.9,1895.7,1.3994]
[1741942780901,4.26279,1895.9,1895.8,2.36344]
[1741942781806,4.26279,1895.9,1895.8,1.3084]
[1741942782101,5.59509,1895.9,1895.8,2.36344]
[1741942783004,4.5401,1895.9,1895.8,2.36344]
[1741942783397,3.2078,1895.9,1895.8,2.36344]
[1741942787112,3.2078,1895.9,1895.8,8.34144]
[1741942790717,0.00790077,1896.0,1895.9,1.05499]
[1741942790911,0.00790077,1896.0,1895.9,3.81059]
[1741942794724,1.45640077,1896.0,1895.9,3.81059]
[1741942796623,1.45640077,1896.0,1895.9,2.42549]
[1741942797121,2.17040077,1896.0,1895.9,2.42549]
[1741942797423,2.87120077,1896.0,1895.9,2.42549]
[1741942797619,2.15720077,1896.0,1895.9,2.42549]
[1741942798523,0.00790077,1896.0,1895.9,2.42549]
[1741942798722,0.00790077,1896.0,1895.9,3.12119]
[1741942800523,25.986,1896.5,1895.9,5.14887852]
[1741942800725,1.4366,1896.4,1896.2,3.2078]
[1741942800924,2.7871,1896.4,1896.3,1.05476]
[1741942801223,2.7871,1896.4,1896.3,2.37796]
[1741942802023,2.7871,1896.4,1896.2,3.21570077]
[1741942802024,3.84181,1896.4,1896.2,3.21570077]
[1741942802321,3.84181,1896.4,1896.3,1.05476]
[1741942802322,2.40521,1896.4,1896.3,1.05476]
[1741942802516,1.3505,1896.4,1896.3,1.05476]
[1741942802929,1.3505,1896.4,1896.3,2.37606]
[1741942805129,0.6787,1896.4,1896.3,2.37606]
[1741942806426,0.675,1896.7,1896.6,1.0546]
[1741942807225,5.5148,1896.8,1896.5,0.6782]
[1741942807430,2.307,1896.9,1896.8,1.05444]
[1741942807729,2.307,1896.9,1896.6,3.2078]
[1741942807924,0.675,1896.8,1896.7,1.05454]
[1741942808131,2.31490077,1897.0,1896.6,3.2078]
[1741942808427,2.31490077,1897.0,1896.8,1.05446]
[1741942808428,3.36928077,1897.0,1896.8,1.05446]
[1741942808830,1.05443,1896.9,1896.8,1.05446]
[1741942809034,1.06232077,1897.0,1896.8,1.05446]
[1741942809233,0.7239,1896.9,1896.8,1.05444]
[1741942810936,2.31490077,1897.0,1896.7,0.6749]
[1741942811135,2.31490077,1897.0,1896.9,1.05443]
[1741942811528,0.00790077,1897.0,1896.9,1.05443]
[1741942813041,0.00790077,1897.0,1896.8,3.2078]
[1741942813227,1.05443,1896.9,1896.8,4.26229]
[1741942813535,0.00790077,1897.0,1896.8,4.26229]
[1741942813734,1.05443,1896.9,1896.8,3.2078]
[1741942813936,1.05443,1896.9,1896.8,4.26229]
[1741942814535,1.06232077,1897.0,1896.8,4.26229]
[1741942814735,1.06232077,1897.0,1896.9,1.05443]
[1741942815135,1.06228077,1897.0,1896.9,1.05443]
[1741942815635,0.00790077,1897.0,1896.9,1.05443]
[1741942816227,2.47438077,1897.0,1896.9,1.05443]
[1741942816631,1.42000077,1897.0,1896.9,1.05443]
[1741942818928,0.00790077,1897.0,1896.9,1.05443]
[1741942819138,1.42370077,1897.0,1896.9,1.05443]
[1741942820139,0.00790077,1897.0,1896.9,1.05443]
[1741942822543,0.6635,1897.3,1897.2,1.05426]
[1741942823039,1.4089,1897.4,1897.3,1.05421]
[1741942824036,1.4089,1897.4,1897.3,1.77941]
[1741942825342,2.46305,1897.4,1897.3,1.77941]
[1741942825541,1.4089,1897.4,1897.3,1.77941]
[1741942826338,1.4089,1897.4,1897.2,0.00790077]
[1741942826339,1.05421,1897.3,1897.2,1.06215077]
[1741942826550,1.77041,1897.3,1897.2,5.59585077]
[1741942827347,0.7162,1897.3,1897.2,2.38805077]
[1741942827546,0.7162,1897.3,1897.2,5.59585077]
[1741942827747,1.77041,1897.3,1897.2,2.38805077]
[1741942827949,0.7162,1897.3,1897.2,2.38805077]
[1741942828146,1.77041,1897.3,1897.2,0.00790077]
[1741942828451,1.05443,1896.9,1896.8,4.26227]
[1741942828744,1.05443,1896.9,1896.8,3.2078]
[1741942829143,3.75743,1896.9,1896.8,4.26229]
[1741942829346,3.75743,1896.9,1896.8,3.2078]
[1741942829535,3.75747,1896.9,1896.7,2.38830077]
[1741942829745,2.43639,1896.8,1896.7,1.33380077]
[1741942830038,1.3819,1896.8,1896.7,1.33380077]
[1741942830234,1.3819,1896.8,1896.7,2.38834077]
[1741942830647,2.43639,1896.8,1896.7,2.38834077]
[1741942831043,2.43639,1896.8,1896.7,1.33380077]
[1741942831350,2.43639,1896.8,1896.7,2.38834077]
[1741942832147,2.43639,1896.8,1896.7,1.33380077]
[1741942832344,2.43639,1896.8,1896.7,2.38834077]
[1741942832544,2.43639,1896.8,1896.7,1.33380077]
[1741942833948,2.43639,1896.8,1896.7,0.00790077]
[1741942835146,2.43639,1896.8,1896.7,1.42420077]
[1741942836347,2.43639,1896.8,1896.7,0.00790077]
[1741942837550,3.8819,1896.8,1896.5,3.2078]
[1741942837736,6.37495138,1896.7,1896.2,3.2078]
[1741942837934,1.05476,1896.3,1896.2,3.2078]
[1741942838334,3.55476,1896.3,1896.2,3.2078]
[1741942838534,1.05492,1896.1,1896.0,4.26273]
[1741942838735,3.36092,1896.1,1896.0,4.622]
[1741942841055,3.36092,1896.1,1896.0,5.67693]
[1741942841550,3.36092,1896.1,1896.0,4.622]
[1741942843447,1.05493,1896.0,1895.9,0.00790077]
[1741942843646,3.84933,1896.0,1895.9,0.00790077]
[1741942843948,3.16153,1896.0,1895.9,3.21570077]
[1741942844142,3.16153,1896.0,1895.9,0.00790077]
[1741942845044,3.87683,1896.0,1895.9,0.00790077]
[1741942847844,3.87683,1896.0,1895.9,1.40470077]
[1741942848247,3.16153,1896.0,1895.9,1.40470077]
[1741942849242,2.9987,1896.0,1895.9,2.45969077]
[1741942849660,4.05363,1896.0,1895.9,2.45969077]
[1741942849856,5.41823,1896.0,1895.9,2.45969077]
[1741942850048,5.41823,1896.0,1895.9,1.40470077]
[1741942850550,4.3633,1896.0,1895.9,1.40470077]
[1741942850752,5.41823,1896.0,1895.9,1.40470077]
[1741942851353,5.41823,1896.0,1895.9,2.45969077]
[1741942852056,5.41823,1896.0,1895.9,1.40470077]
[1741942852759,5.41823,1896.0,1895.9,2.45969077]
[1741942853147,5.41823,1896.0,1895.9,1.40470077]
[1741942853349,4.72553,1896.0,1895.9,1.40470077]
[1741942854856,4.72553,1896.0,1895.9,4.61250077]
[1741942859660,4.72553,1896.0,1895.9,1.40470077]
[1741942868966,3.6706,1896.0,1895.7,3.2078]
[1741942869151,1.05515,1895.6,1895.5,1.4342]
[1741942869469,3.36115,1895.6,1895.5,1.4342]
[1741942870162,4.07115,1895.6,1895.5,1.4342]
[1741942872462,7.27895,1895.6,1895.5,1.4342]
[1741942873663,7.36564392,1895.6,1895.5,1.4342]
[1741942873869,7.27895,1895.6,1895.5,1.4342]
[1741942874361,6.56895,1895.6,1895.5,1.4342]
[1741942874962,7.94625,1895.6,1895.5,1.4342]
[1741942876474,8.66245,1895.6,1895.5,1.4342]
[1741942876971,5.45465,1895.6,1895.5,1.4342]
[1741942880764,3.14865,1895.6,1895.5,1.4342]
[1741942880961,3.36115,1895.6,1895.5,1.4342]
[1741942881161,3.36115,1895.6,1895.5,2.48941]
[1741942881668,1.05515,1895.6,1895.5,1.4342]
[1741942881867,3.36115,1895.6,1895.5,2.48941]
[1741942882263,3.2078,1895.8,1895.5,1.4342]
[1741942882470,2.306,1895.7,1895.6,3.83855]
[1741942884171,1.05496,1896.0,1895.9,1.05499]
[1741942884762,2.306,1896.0,1895.9,2.37749]
[1741942884958,2.306,1896.2,1896.1,1.05488]
[1741942885157,4.26261,1896.3,1896.1,1.05488]
[1741942885368,6.56861,1896.3,1896.2,2.37732]
[1741942885865,6.56861,1896.3,1896.2,1.3225]
[1741942886071,6.56861,1896.3,1896.2,2.37732]
[1741942887266,1.05476,1896.3,1896.2,1.3225]
[1741942887667,2.49806,1896.3,1896.2,1.3225]
[1741942887964,2.63706,1896.2,1895.7,3.2078]
[1741942888162,2.63706,1896.2,1895.6,0.6704]
[1741942888163,2.63738,1896.0,1895.6,0.6704]
[1741942888358,1.0551,1895.7,1895.6,1.3423]
[1741942888564,44.1611,1895.7,1895.6,1.3423]
[1741942888765,43.106,1895.7,1895.6,2.39745]
[1741942889075,2.306,1895.7,1895.6,2.39745]
[1741942889275,3.3611,1895.7,1895.6,1.3423]
[1741942889572,4.8044,1895.7,1895.6,1.3423]
[1741942889875,1.05515,1895.6,1895.5,1.3423]
[1741942890072,2.49845,1895.6,1895.5,1.3423]
[1741942891561,1.05532,1895.3,1895.2,9.8562]
[1741942891765,1.0553,1895.4,1895.2,10.91155]
[1741942891965,1.05532,1895.3,1895.2,9.8562]
[1741942892978,1.4104,1895.3,1895.2,11.1916]
[1741942893166,1.4104,1895.3,1895.2,12.24698]
[1741942893366,2.46572,1895.3,1895.2,12.24698]
[1741942893565,2.46572,1895.3,1895.2,9.1858]
[1741942893871,1.4104,1895.3,1894.9,1.4273]
[1741942894067,1.4104,1895.3,1895.0,0.6704]
[1741942894268,1.05543,1895.1,1895.0,0.6704]
[1741942894570,2.306,1895.1,1895.0,1.72587]
[1741942894876,3.36143,1895.1,1895.0,0.6704]
[1741942895173,3.36143,1895.1,1895.0,1.72589]
[1741942895374,3.36143,1895.1,1895.0,0.6704]
[1741942896777,3.36143,1895.1,1895.0,1.72589]
[1741942897075,3.36143,1895.1,1895.0,0.6704]
[1741942897578,3.36143,1895.1,1895.0,1.72589]
[1741942898073,3.36143,1895.1,1895.0,0.6704]
[1741942898966,3.36143,1895.1,1894.8,3.2078]
[1741942899172,1.05554,1894.9,1894.8,4.2634]
[1741942900279,2.36661,1895.0,1894.9,1.05554]
[1741942900673,1.05554,1894.9,1894.8,4.26337]
[1741942900873,1.05554,1894.9,1894.8,1.05557]
[1741942901675,1.05554,1894.9,1894.8,4.26337]
[1741942903576,1.05554,1894.9,1894.8,1.05557]
[1741942903781,1.05554,1894.9,1894.8,4.26337]
[1741942905283,4.02907,1895.1,1895.0,1.05549]
[1741942905578,1.3891,1895.2,1895.0,4.26329]
[1741942905782,3.36138,1895.2,1895.1,1.05543]
[1741942905978,0.70460077,1895.4,1895.0,3.2078]
[1741942906175,2.31390077,1895.4,1895.3,4.26312]
[1741942906374,0.00790077,1895.4,1895.3,4.26312]
[1741942907483,0.00790077,1895.4,1895.3,5.61842]
[1741942908080,0.6553,1895.9,1895.3,13.0411]
[1741942908278,1.443,1896.0,1895.6,5.84567]
[1741942908484,3.36101,1895.9,1895.8,1.05504]
[1741942908686,2.306,1895.9,1895.8,1.05504]
[1741942909382,3.6495,1895.9,1895.8,1.05504]
[1741942909585,3.6495,1895.9,1895.7,2.79520077]
[1741942909782,3.6495,1895.9,1895.8,1.05504]
[1741942911878,3.6495,1895.9,1895.7,2.79520077]
[1741942912083,4.70453,1895.9,1895.7,3.85026077]
[1741942912772,4.70453,1895.9,1895.7,2.79520077]
[1741942912981,2.39853,1895.9,1895.8,1.05504]
[1741942913178,2.39853,1895.9,1895.7,3.85025077]
[1741942913376,2.39853,1895.9,1895.8,1.05504]
[1741942913583,1.3435,1895.9,1895.8,1.05504]
[1741942913781,3.36785077,1896.0,1895.7,2.79520077]
[1741942913983,2.31290077,1896.0,1895.9,1.05499]
[1741942914382,3.36783077,1896.0,1895.9,1.05499]
[1741942914781,0.00790077,1896.0,1895.9,1.05499]
[1741942915085,2.31290077,1896.0,1895.9,1.05499]
[1741942915278,0.00790077,1896.0,1895.9,2.37889]
[1741942916484,0.6765,1896.6,1896.1,2.63715]
[1741942916684,5.48584,1896.6,1896.5,1.05465]
[1741942919189,2.1262,1896.6,1896.5,1.05465]
[1741942919492,2.31290077,1896.7,1896.6,1.0546]
[1741942920284,2.31290077,1896.7,1896.6,2.3917]
[1741942920687,3.36747077,1896.7,1896.6,1.0546]
[1741942920892,4.04477077,1896.7,1896.5,1.3324]
[1741942921088,2.31290077,1896.7,1896.5,1.3324]
[1741942921291,2.31290077,1896.7,1896.6,1.0546]
[1741942921493,3.36744077,1896.7,1896.6,1.0546]
[1741942921686,2.31290077,1896.7,1896.6,1.0546]
[1741942921890,0.00790077,1896.7,1896.6,1.0546]
[1741942922091,0.00790077,1896.7,1896.6,4.2624]
[1741942922588,0.00790077,1896.7,1896.6,10.2404]
[1741942923097,2.305,1897.0,1896.9,1.05443]
[1741942923488,1.75193,1897.1,1897.0,1.05438]
[1741942924088,0.6976,1897.1,1897.0,1.05438]
[1741942925496,1.75192,1897.1,1897.0,1.05438]
[1741942925698,0.6976,1897.1,1897.0,1.05438]
[1741942925896,1.75192,1897.1,1897.0,1.05438]
[1741942927602,1.05438,1897.0,1896.9,2.47301077]
[1741942928703,1.05438,1897.0,1896.9,2.47303077]
[1741942929206,1.05438,1897.0,1896.9,1.41860077]
[1741942930015,1.05438,1897.0,1896.9,2.47303077]
[1741942930309,1.05438,1897.0,1896.9,1.41860077]
[1741942930708,1.05438,1897.0,1896.9,2.47303077]
[1741942930908,4.76876,1897.1,1897.0,1.05438]
[1741942931415,1.05438,1897.0,1896.9,2.47302077]
[1741942934017,1.05438,1897.0,1896.9,2.40933077]
[1741942934818,1.05438,1897.0,1896.9,1.35490077]
[1741942935019,1.05438,1897.0,1896.9,2.40933077]
[1741942936420,2.37768,1897.0,1896.9,2.40933077]
[1741942937416,1.3233,1897.0,1896.9,2.40933077]